bitfinex/quotes_ETHUSD_20240819
["timestamp","ask_amount","ask_price","bid_price","bid_amount"]
[1724086688608,3.86125,2589.9,2589.5,3.86174]
[1724086688791,3.86125,2589.9,2589.4,7.319363]
[1724086688792,3.86123,2589.9,2589.4,7.319363]
[1724086689185,3.86123,2589.9,2589.5,3.86173]
[1724086689381,7.72247,2589.9,2589.4,7.319353]
[1724086690327,3.0,2591.1,2590.0,3.86093]
[1724086690328,6.12503,2590.5,2590.0,3.86093]
[1724086690609,3.86012,2590.6,2590.1,3.86078]
[1724086690823,3.85999,2590.7,2590.2,0.386078]
[1724086690963,7.71975,2590.8,2590.3,2.3842]
[1724086692489,3.86092,2590.1,2589.7,5.3624]
[1724086692681,3.86081,2590.2,2589.7,9.22377]
[1724086692880,3.86081,2590.2,2589.7,5.3624]
[1724086693168,3.86081,2590.2,2589.7,3.0]
[1724086694126,6.11432,2590.4,2589.7,6.86131]
[1724086694412,6.11432,2590.4,2589.9,3.86113]
[1724086695182,6.11432,2590.4,2589.9,7.72226]
[1724086695826,6.11432,2590.4,2589.9,3.86113]
[1724086696032,6.11432,2590.4,2589.9,3.86107]
[1724086697097,3.86058,2590.3,2589.9,3.86107]
[1724086698210,2.2539,2590.4,2589.9,3.86107]
[1724086698412,2.2539,2590.4,2589.9,3.86113]
[1724086698794,2.2539,2590.4,2590.0,3.86097]
[1724086698999,3.62555337,2590.4,2590.0,3.86097]
[1724086699504,7.48598337,2590.4,2590.0,3.86097]
[1724086699809,7.48598337,2590.4,2589.9,3.86113]
[1724086700313,7.48598337,2590.4,2590.0,3.86097]
[1724086701546,7.87713,2590.6,2590.0,3.86097]
[1724086701726,3.86025,2590.5,2590.1,3.86083]
[1724086702625,3.86025,2590.5,2590.0,3.86097]
[1724086702952,3.86049,2590.4,2589.9,3.86113]
[1724086704301,3.86056,2590.3,2589.9,3.86113]
[1724086705419,5.87941866,2590.3,2589.9,3.86113]
[1724086705616,5.87928866,2590.4,2589.9,3.86113]
[1724086706164,2.01885866,2590.3,2590.0,3.86093]
[1724086706365,3.86043,2590.4,2590.1,3.86082]
[1724086706366,2.01885866,2590.4,2590.1,3.86082]
[1724086706518,2.01885866,2590.3,2590.1,3.86082]
[1724086706847,5.87942866,2590.3,2589.9,3.86113]
[1724086707045,3.86057,2590.3,2589.9,3.86113]
[1724086707233,2.02303998,2590.2,2589.9,3.86113]
[1724086707431,5.88360998,2590.3,2589.9,3.86113]
[1724086708207,2.02303998,2590.2,2589.9,3.86108]
[1724086708422,2.02303998,2590.2,2589.7,6.86131]
[1724086708423,2.02303998,2590.1,2589.7,6.86131]
[1724086708752,2.02303998,2590.1,2589.7,10.72266]
[1724086709117,2.02303998,2590.0,2589.7,10.72266]
[1724086709949,2.02303998,2590.1,2589.9,3.86115]
[1724086710415,2.02303998,2590.1,2589.4,1.016483]
[1724086710416,2.02303998,2590.0,2589.4,1.016483]
[1724086710627,2.02303998,2590.0,2588.8,2.3776]
[1724086710628,2.02748067,2589.5,2588.8,2.3776]
[1724086710950,2.02748067,2589.5,2588.5,0.80840217]
[1724086710951,2.0278549,2589.1,2588.6,3.86296]
[1724086711120,2.0278549,2589.1,2588.5,2.3776]
[1724086711121,2.0278549,2588.9,2588.5,2.3776]
[1724086711323,2.0278549,2588.9,2588.4,3.86326]
[1724086711532,5.88897926,2588.9,2588.4,7.72657]
[1724086711736,2.02630926,2588.8,2588.4,3.86326]
[1724086712117,2.02630926,2588.8,2588.5,3.86313]
[1724086712305,2.02630926,2589.0,2588.7,3.86294]
[1724086712511,5.88867926,2589.1,2588.7,3.86292]
[1724086713311,3.86272,2588.9,2588.4,3.86338]
[1724086713853,5.88902926,2588.9,2588.4,3.86338]
[1724086714002,3.86272,2588.9,2588.4,3.86338]
[1724086714405,5.88892926,2589.0,2588.5,3.86323]
[1724086715203,5.88892926,2589.0,2588.4,3.86334]
[1724086715204,7.26572019,2589.0,2588.4,3.86334]
[1724086715356,3.86283,2588.8,2588.4,3.86334]
[1724086715707,3.86295,2588.7,2588.2,6.86366]
[1724086715853,3.86303,2588.7,2587.8,6.28866]
[1724086716051,3.86332,2588.5,2588.0,3.86397]
[1724086716596,3.86332,2588.5,2588.0,7.72788]
[1724086716765,6.14517,2588.4,2587.9,3.86402]
[1724086716969,3.86355,2588.3,2587.8,3.86415]
[1724086717151,3.86355,2588.3,2587.7,3.86442]
[1724086717152,3.86369,2588.2,2587.7,3.86442]
[1724086717353,3.86388,2588.1,2587.6,3.86448]
[1724086717596,3.86369,2588.2,2587.6,3.86448]
[1724086717597,7.72749,2588.2,2587.6,3.86448]
[1724086717795,7.72752,2588.2,2587.6,3.86448]
[1724086717997,7.7275,2588.2,2587.6,3.86448]
[1724086718291,3.86388,2588.1,2587.6,3.86448]
[1724086718498,3.86388,2588.1,2587.6,7.72898]
[1724086718696,7.7275,2588.2,2587.6,7.72898]
[1724086718902,7.72749,2588.2,2587.6,3.86448]
[1724086719709,7.72749,2588.2,2587.6,7.72898]
[1724086720055,7.72749,2588.2,2587.6,3.86448]
[1724086720571,3.86369,2588.2,2587.6,5.185315]
[1724086720797,3.86348,2588.4,2587.9,3.86406]
[1724086721004,3.86331,2588.5,2588.0,3.86397]
[1724086721234,3.86343,2588.4,2587.8,3.86415]
[1724086721504,3.86343,2588.4,2587.9,3.86406]
[1724086722303,3.86376,2588.2,2587.7,3.86433]
[1724086723817,3.86394,2588.1,2587.6,3.86458]
[1724086724365,3.86393,2588.1,2587.6,3.86458]
[1724086725326,3.86363,2588.3,2587.7,3.86441]
[1724086725476,3.86363,2588.3,2587.7,4.250851]
[1724086725678,3.86337,2588.5,2587.9,3.86399]
[1724086725896,3.8635,2588.4,2587.9,3.86399]
[1724086726424,3.8635,2588.4,2588.0,0.03475821]
[1724086730087,3.86317,2588.6,2588.0,0.03475821]
[1724086730413,3.86286,2588.8,2588.3,3.86344]
[1724086730784,3.86286,2588.8,2588.4,0.03621779]
[1724086731497,7.72574,2588.8,2588.4,0.03621779]
[1724086731704,3.86286,2588.8,2588.4,0.03621779]
[1724086732569,3.86295,2588.7,2588.4,0.03621779]
[1724086734144,3.86315,2588.6,2588.4,0.03621779]
[1724086734448,3.8628,2588.8,2588.4,0.03621779]
[1724086734625,4.017,2589.1,2588.5,3.86315]
[1724086734626,3.86246,2589.1,2588.5,3.86315]
[1724086734804,3.86246,2589.1,2588.5,0.03621779]
[1724086735007,3.86264,2588.9,2588.5,0.03621779]
[1724086735332,7.72538,2588.9,2588.5,0.03621779]
[1724086735651,3.86281,2588.8,2588.5,0.03621779]
[1724086735944,3.86281,2588.8,2588.3,3.86352]
[1724086736094,3.86281,2588.8,2588.4,0.03621779]
[1724086738359,3.86281,2588.8,2588.4,3.89958779]
[1724086739154,3.8628,2588.8,2588.4,4.67580357]
[1724086739598,3.8628,2588.8,2588.4,0.03621779]
[1724086739794,3.86301,2588.7,2588.4,0.03621779]
[1724086740033,3.86301,2588.7,2588.3,3.0]
[1724086740226,3.86301,2588.7,2588.5,0.03587409]
[1724086740445,3.86279,2588.8,2588.3,6.86353]
[1724086740628,3.86279,2588.8,2588.6,0.03587409]
[1724086740944,7.72567,2588.8,2588.7,0.03587409]
[1724086741102,7.72567,2588.8,2588.3,6.86353]
[1724086741496,6.22889,2588.8,2588.4,0.03587409]
[1724086741742,3.863,2588.7,2588.4,0.03587409]
[1724086743146,13.90272,2588.5,2588.4,0.03587409]
[1724086743306,3.86372,2588.2,2587.7,6.26313]
[1724086743503,7.36,2588.5,2588.2,2.3987]
[1724086743712,7.36,2588.5,2588.3,3.89911599]
[1724086744044,16.02281,2588.8,2588.3,3.89911599]
[1724086744045,3.86281,2588.8,2588.3,4.52895759]
[1724086744398,3.86294,2588.7,2588.3,4.52895759]
[1724086744848,3.86294,2588.7,2588.3,0.66543759]
[1724086745066,3.86306,2588.7,2588.3,0.03565599]
[1724086745451,3.86309,2588.6,2588.2,6.26224]
[1724086745647,3.86309,2588.6,2588.4,0.03560973]
[1724086745797,3.86309,2588.6,2588.2,6.26224]
[1724086745996,3.86309,2588.6,2588.5,0.03560973]
[1724086746243,3.86309,2588.6,2588.2,6.26224]
[1724086746539,3.86288,2588.8,2588.4,3.86337]
[1724086746753,3.86288,2588.8,2588.5,0.03561634]
[1724086747061,3.86288,2588.8,2588.3,3.86345]
[1724086747354,7.36,2588.9,2588.4,3.86337]
[1724086747355,3.86271,2588.9,2588.4,3.86337]
[1724086747546,3.86271,2588.9,2588.5,0.03561634]
[1724086747932,3.8629,2588.8,2588.5,0.03561634]
[1724086748137,3.8629,2588.8,2588.3,3.86352]
[1724086748315,3.8629,2588.8,2588.4,0.03561634]
[1724086749031,3.86296,2588.7,2588.4,0.03561634]
[1724086749266,7.72599,2588.7,2588.4,0.03561634]
[1724086749432,3.86296,2588.7,2588.2,6.26227]
[1724086749649,3.86296,2588.7,2588.5,0.03558991]
[1724086749808,3.86296,2588.7,2588.2,10.12584]
[1724086750150,3.86296,2588.7,2588.2,11.138424]
[1724086750353,3.86296,2588.7,2588.3,0.03558991]
[1724086750503,3.86296,2588.7,2588.3,3.86352]
[1724086750704,3.8628,2588.8,2588.4,0.03443285]
[1724086750907,3.86296,2588.7,2588.4,0.03443285]
[1724086751349,3.86281,2588.8,2588.4,0.03443285]
[1724086751662,3.86281,2588.8,2588.3,3.86352]
[1724086751947,3.86281,2588.8,2588.3,4.9773574]
[1724086752131,3.86281,2588.8,2588.4,0.03443285]
[1724086752339,7.72571,2588.8,2588.4,0.03443285]
[1724086752539,3.86281,2588.8,2588.4,0.03443285]
[1724086752726,3.86281,2588.8,2588.4,3.89778285]
[1724086753053,3.86261,2589.0,2588.6,3.86304]
[1724086753351,11.22226,2589.2,2588.6,6.33054]
[1724086753427,3.86236,2589.1,2588.7,3.86293]
[1724086753617,11.22226,2589.2,2588.7,7.76021285]
[1724086753964,9.37737923,2589.5,2589.0,3.86248]
[1724086754125,7.36,2589.5,2589.2,3.86212]
[1724086754331,3.86151,2589.7,2589.3,2.52083285]
[1724086754864,7.36,2589.9,2589.5,3.86167]
[1724086755158,7.36,2589.9,2589.4,3.86189]
[1724086755159,11.22115,2589.9,2589.4,3.86189]
[1724086755306,11.22115,2589.9,2589.5,0.03443285]
[1724086755307,3.86152,2589.7,2589.5,0.03443285]
[1724086755513,3.86152,2589.7,2589.3,2.4864]
[1724086755711,3.86152,2589.7,2589.3,5.4864]
[1724086755958,3.86152,2589.7,2589.4,0.03443285]
[1724086756140,3.86168,2589.6,2589.4,0.03443285]
[1724086756347,3.86174,2589.5,2589.4,0.03443285]
[1724086756513,3.86174,2589.5,2589.2,3.0]
[1724086756876,3.86174,2589.5,2589.3,0.03443285]
[1724086757046,3.86178,2589.5,2589.3,0.03443285]
[1724086757248,3.86178,2589.5,2589.2,3.0]
[1724086757423,3.86178,2589.5,2589.4,0.03443285]
[1724086757622,3.86178,2589.5,2589.2,3.0]
[1724086757817,3.86178,2589.5,2589.4,0.03391133]
[1724086758063,3.86178,2589.5,2588.6,2.3072]
[1724086758064,6.28792,2589.4,2588.6,2.3072]
[1724086758261,3.86258,2589.0,2588.6,6.17026]
[1724086758563,5.88451291,2589.3,2588.8,3.86276]
[1724086759077,3.86221,2589.2,2588.8,3.86276]
[1724086759229,5.07946629,2589.2,2588.6,6.17017]
[1724086759437,3.86236,2589.1,2588.7,3.86293]
[1724086759636,3.86236,2589.1,2588.8,3.0]
[1724086759839,5.07946629,2589.2,2588.8,3.0]
[1724086760371,3.86241,2589.1,2588.8,3.0]
[1724086760536,5.07945629,2589.2,2588.8,3.0]
[1724086761250,8.94177629,2589.2,2588.8,3.0]
[1724086761771,8.94174629,2589.2,2588.8,3.0]
[1724086762269,8.94173629,2589.2,2588.8,3.0]
[1724086762764,3.8625,2589.0,2588.8,3.0]
[1724086763063,0.56507116,2589.1,2588.7,6.86292]
[1724086763064,3.86235,2589.1,2588.7,6.86292]
[1724086763221,3.86235,2589.1,2588.7,3.0]
[1724086763561,4.44844291,2589.4,2588.7,3.0]
[1724086763562,3.86251,2589.0,2588.7,3.0]
[1724086765135,3.86222,2589.2,2588.7,3.0]
[1724086765136,3.86236,2589.1,2588.7,3.0]
[1724086765764,3.86236,2589.1,2588.7,6.86291]
[1724086765936,3.86236,2589.1,2588.7,8.166218]
[1724086766950,9.74629489,2589.3,2588.8,3.86278]
[1724086767177,3.86226,2589.2,2588.8,3.86278]
[1724086767526,3.86226,2589.2,2588.9,0.03380561]
[1724086767722,3.86226,2589.2,2588.7,6.86291]
[1724086767937,3.86226,2589.2,2588.8,0.03380561]
[1724086768148,3.86226,2589.2,2588.8,3.89657561]
[1724086768328,3.86237,2589.1,2588.8,0.03380561]
[1724086768557,3.86237,2589.1,2588.7,3.0]
[1724086768725,3.86237,2589.1,2588.8,0.03380561]
[1724086769553,13.24404489,2589.4,2589.0,2.4192]
[1724086769757,17.10647051,2589.4,2589.0,2.4192]
[1724086770070,13.24445051,2589.4,2589.1,0.03380561]
[1724086770270,17.10644051,2589.4,2589.1,0.03380561]
[1724086770765,3.86209,2589.3,2589.0,2.4192]
[1724086771179,3.86222,2589.2,2589.0,2.4192]
[1724086771380,3.86222,2589.2,2589.1,0.03385182]
[1724086771596,3.86222,2589.2,2588.8,6.28186]
[1724086771744,3.86209,2589.3,2588.9,0.03385182]
[1724086773358,3.86209,2589.3,2588.9,3.89648182]
[1724086773943,5.88453051,2589.3,2588.9,3.89648182]
[1724086775279,2.02244051,2589.3,2589.0,3.86245]
[1724086775445,2.02244051,2589.4,2589.2,3.86219]
[1724086775642,21.94692862,2589.7,2589.2,3.86219]
[1724086775643,2.02244051,2589.6,2589.2,3.86219]
[1724086775890,2.02244051,2589.6,2589.3,3.86198]
[1724086776041,2.02244051,2589.6,2589.3,3.89587145]
[1724086776387,9.38244051,2589.7,2589.5,2.4008]
[1724086776539,7.36,2589.7,2589.6,3.8616]
[1724086776939,7.36,2589.7,2589.6,0.03377923]
[1724086781589,5.88381613,2589.9,2589.6,0.03377923]
[1724086781881,3.86118,2589.9,2589.6,0.03377923]
[1724086782245,9.74504613,2589.9,2589.6,0.03377923]
[1724086782482,9.74508613,2589.9,2589.6,0.03377923]
[1724086782987,5.88381613,2589.9,2589.6,0.03377923]
[1724086783603,3.86118,2589.9,2589.6,0.03377923]
[1724086783787,5.88275302,2589.9,2589.5,2.4008]
[1724086784299,3.86118,2589.9,2589.5,2.4008]
[1724086785378,7.72244,2589.9,2589.5,2.4008]
[1724086785575,9.74401302,2589.9,2589.5,2.4008]
[1724086785777,7.72244,2589.9,2589.5,2.4008]
[1724086786016,3.86131,2589.8,2589.5,2.4008]
[1724086786659,3.86117,2589.9,2589.5,2.4008]
[1724086787011,5.88257302,2590.0,2589.5,2.4008]
[1724086787362,5.88257302,2590.0,2589.5,6.26252]
[1724086787707,3.86115,2589.9,2589.5,6.26252]
[1724086788280,7.72241,2589.9,2589.5,2.4008]
[1724086788607,3.86115,2589.9,2589.5,2.4008]
[1724086788772,3.86115,2589.9,2589.5,6.26248]
[1724086790372,3.86102,2590.0,2589.5,6.26248]
[1724086790578,5.53902,2590.0,2589.6,3.86157]
[1724086790774,7.5602,2590.0,2589.5,6.26253]
[1724086790996,5.53902,2590.0,2589.5,7.188783]
[1724086791798,5.53902,2590.0,2589.5,7.188723]
[1724086792104,5.53902,2590.0,2589.6,3.86153]
[1724086793213,9.40012,2590.0,2589.6,3.86153]
[1724086793504,9.40012,2590.0,2589.5,6.26252]
[1724086794299,9.40011,2590.0,2589.5,6.26252]
[1724086795007,11.42187966,2590.0,2589.5,6.26252]
[1724086795309,5.53902,2590.0,2589.6,3.86159]
[1724086795482,5.53902,2590.0,2589.5,6.26252]
[1724086795680,3.86102,2590.0,2589.5,7.574926]
[1724086796211,7.72212,2590.0,2589.5,7.574926]
[1724086796565,3.86116,2589.9,2589.5,7.574926]
[1724086797495,3.86116,2589.9,2589.5,6.26248]
[1724086798217,5.53916,2589.9,2589.5,6.26248]
[1724086798413,7.56167967,2589.9,2589.5,6.26248]
[1724086800187,7.56167967,2589.9,2589.5,10.12416]
[1724086800387,7.56167967,2589.9,2589.5,6.26248]
[1724086800714,1.678,2589.9,2589.5,6.26245]
[1724086800917,5.88361967,2590.0,2589.5,11.436548]
[1724086801075,7.56161967,2590.0,2589.5,11.436518]
[1724086801278,3.86117,2589.9,2589.5,2.4008]
[1724086801469,3.86117,2589.9,2589.5,3.0]
[1724086801470,3.8614,2589.8,2589.5,3.0]
[1724086801680,5.5394,2589.8,2589.5,3.0]
[1724086801915,2.02251967,2589.8,2589.5,6.86167]
[1724086802087,2.02251967,2589.9,2589.6,3.86157]
[1724086802285,2.02251967,2589.9,2589.7,2.3203]
[1724086803215,2.02251967,2589.9,2589.7,6.18172]
[1724086803520,2.02251967,2589.9,2589.7,2.3203]
[1724086803673,6.2877536,2590.2,2589.7,2.3203]
[1724086803674,2.02251967,2590.1,2589.7,3.166702]
[1724086803873,5.88324967,2590.2,2589.8,3.86122]
[1724086804528,5.88375509,2590.2,2589.8,3.86122]
[1724086804846,2.02302509,2590.1,2589.8,3.86122]
[1724086805173,2.02302509,2590.1,2589.7,7.028122]
[1724086805387,2.02303044,2590.1,2589.7,7.028122]
[1724086805922,5.88376044,2590.2,2589.8,3.86124]
[1724086806126,2.02303044,2590.2,2589.8,4.9501452]
[1724086806307,13.24359044,2590.3,2589.8,4.9501452]
[1724086806478,11.22063,2590.3,2590.0,2.3973]
[1724086806678,11.22063,2590.3,2589.8,4.9501452]
[1724086806679,13.24335496,2590.3,2589.8,6.2585]
[1724086807591,2.02272496,2590.3,2589.9,3.86103]
[1724086807934,2.02272496,2590.3,2589.8,3.02315]
[1724086807935,2.02272496,2590.3,2590.1,3.86073]
[1724086808109,2.02272496,2590.4,2590.0,6.25822]
[1724086808279,13.64737996,2590.6,2590.2,3.86068]
[1724086808280,2.02272496,2590.5,2590.2,3.86068]
[1724086808496,2.02272496,2590.5,2590.3,3.86053]
[1724086809012,5.88268496,2590.7,2590.3,3.86053]
[1724086809263,5.88268496,2590.7,2590.2,7.72124]
[1724086809413,7.56068496,2590.7,2590.2,3.86062]
[1724086809596,7.56068496,2590.7,2590.1,3.86078]
[1724086809803,5.53829,2590.5,2590.0,6.2582]
[1724086810053,5.53829,2590.5,2590.1,3.0]
[1724086810209,1.678,2590.5,2590.1,6.86081]
[1724086810513,5.53857,2590.3,2589.8,3.86119]
[1724086810711,3.8608,2590.2,2589.7,2.3573]
[1724086810916,3.8608,2590.2,2589.7,6.21873]
[1724086811773,5.53892,2590.1,2589.6,3.86145]
[1724086812048,5.53892,2590.1,2589.1,3.86226]
[1724086812049,7.79113,2589.7,2589.1,2.3573]
[1724086812248,1.678,2589.5,2589.1,3.86223]
[1724086812551,3.86175,2589.5,2588.9,3.86251]
[1724086812770,3.86175,2589.5,2589.0,3.86246]
[1724086813051,3.86169,2589.6,2589.1,3.86233]
[1724086813251,3.86169,2589.6,2589.2,2.3573]
[1724086813636,3.86168,2589.6,2589.2,2.3573]
[1724086814659,2.02310539,2589.7,2589.3,3.86195]
[1724086815048,5.88456539,2589.7,2589.3,3.86195]
[1724086815554,5.88456539,2589.7,2589.2,7.227672]
[1724086815875,2.02310539,2589.7,2589.3,7.724]
[1724086816037,2.02310539,2589.7,2589.3,3.86197]
[1724086816225,2.02310539,2589.7,2589.3,7.72394]
[1724086816558,2.02310539,2589.7,2589.3,3.86197]
[1724086816859,2.02310539,2589.6,2589.2,6.21949]
[1724086817749,5.88457539,2589.7,2589.2,6.21949]
[1724086818367,2.02310539,2589.6,2589.2,6.21949]
[1724086818717,2.02310539,2589.6,2589.3,3.86199]
[1724086818928,13.47277,2589.9,2589.4,3.86189]
[1724086819131,2.02448855,2589.7,2589.4,3.86189]
[1724086819660,2.02448855,2589.7,2589.4,7.72371]
[1724086819882,2.02448855,2589.8,2589.6,2.3647]
[1724086820089,3.86153,2589.7,2589.2,9.22677]
[1724086820269,3.86153,2589.7,2589.3,3.0]
[1724086820471,3.86153,2589.7,2589.3,6.86202]
[1724086821644,5.88579855,2589.8,2589.3,6.86202]
[1724086822196,2.02448855,2589.7,2589.3,6.86202]
[1724086822486,5.88579855,2589.8,2589.4,3.86182]
[1724086822843,2.02448855,2589.8,2589.7,3.86145]
[1724086823156,8.5021185,2590.4,2589.8,6.332]
[1724086823157,2.02448855,2590.0,2589.8,6.332]
[1724086823356,2.02448855,2590.1,2590.0,3.861]
[1724086823560,9.38448855,2590.4,2590.1,3.86085]
[1724086823761,9.38448855,2590.4,2590.3,3.86055]
[1724086823762,2.02448855,2590.4,2590.3,3.86055]
[1724086823982,7.36,2590.8,2590.3,4.632675]
[1724086823983,2.02448855,2590.5,2590.3,4.632675]
[1724086824143,2.02448855,2590.7,2590.5,3.86013]
[1724086824345,2.02448855,2590.8,2590.5,3.86017]
[1724086824547,2.02448855,2590.9,2590.5,7.72035]
[1724086824787,2.02448855,2590.8,2590.5,7.72035]
[1724086825156,2.02448855,2590.8,2590.5,3.86017]
[1724086825350,2.02448855,2590.8,2590.4,3.8604]
[1724086825663,2.02448855,2590.8,2590.5,3.0]
[1724086826481,5.88415855,2590.9,2590.5,6.86024]
[1724086827871,5.88153283,2590.9,2590.5,6.86024]
[1724086828470,5.88138283,2591.0,2590.5,10.72042]
[1724086828668,5.88138283,2591.0,2590.5,6.86018]
[1724086828965,3.85991,2590.8,2590.5,3.0]
[1724086829294,3.86081,2590.2,2589.7,3.86132]
[1724086829456,3.86081,2590.2,2589.6,2.4363]
[1724086829457,3.86092,2590.1,2589.6,6.29789]
[1724086829660,3.86092,2590.1,2589.6,2.4363]
[1724086829861,3.86081,2590.2,2589.3,2.4363]
[1724086829862,4.028,2590.2,2589.3,2.4363]
[1724086830058,4.44161712,2590.3,2589.1,3.86222]
[1724086830059,3.86139,2589.8,2589.1,3.86222]
[1724086830297,7.72281,2589.8,2589.1,4.492072]
[1724086830554,3.86145,2589.7,2589.1,8.354312]
[1724086830809,3.86139,2589.8,2589.1,8.354312]
[1724086830993,3.86139,2589.8,2589.2,3.86217]
[1724086831201,9.74461712,2589.8,2589.1,4.492072]
[1724086831356,5.88320712,2589.8,2589.1,4.492072]
[1724086831699,5.88320712,2589.8,2589.2,3.86217]
[1724086831998,5.88320712,2589.8,2589.2,4.9412242]
[1724086832297,5.88355294,2589.8,2589.2,4.9412242]
[1724086832472,5.88355294,2589.8,2589.3,3.86203]
[1724086832802,2.02216294,2589.9,2589.3,3.86203]
[1724086833001,2.02216294,2589.9,2589.5,3.86161]
[1724086833302,2.02216294,2590.0,2589.5,4.633963]
[1724086833455,2.02216294,2590.0,2589.5,3.86161]
[1724086834168,2.02216294,2590.0,2589.5,7.72323]
[1724086834496,2.02216294,2590.0,2589.5,3.86161]
[1724086834794,3.86138,2589.8,2589.1,6.86222]
[1724086835053,3.86145,2589.7,2589.1,6.86222]
[1724086835196,3.86138,2589.8,2589.1,6.86222]
[1724086835700,5.88319294,2590.0,2589.4,3.86188]
[1724086836544,5.88290142,2590.0,2589.4,3.86188]
[1724086837157,5.88290142,2590.0,2589.5,3.8617]
[1724086837499,9.38187142,2590.1,2589.5,3.86167]
[1724086837711,7.36,2590.1,2589.7,3.86145]
[1724086837911,5.88266142,2590.2,2589.7,3.86145]
[1724086838203,5.88266142,2590.2,2589.5,8.10948]
[1724086838431,3.86086,2590.1,2589.5,8.10948]
[1724086838615,2.02187142,2590.2,2589.6,1.041088]
[1724086838798,5.88269142,2590.2,2589.7,3.86144]
[1724086839245,2.02187142,2590.3,2589.6,1.041088]
[1724086839408,9.38187142,2590.4,2590.1,3.86085]
[1724086839612,7.36,2590.4,2590.1,3.86085]
[1724086839910,2.02187142,2590.5,2590.1,4.863179]
[1724086840118,5.88191142,2590.7,2590.1,8.723869]
[1724086840302,5.88191142,2590.7,2590.1,4.863099]
[1724086840504,5.88191142,2590.7,2590.1,8.723879]
[1724086840745,5.88191142,2590.7,2590.2,3.86069]
[1724086841250,5.88191142,2590.7,2590.1,4.863099]
[1724086841251,3.86011,2590.6,2590.1,4.863099]
[1724086841543,3.86039,2590.5,2589.9,6.16245]
[1724086841749,3.86065,2590.3,2590.0,3.0]
[1724086841930,3.86068,2590.3,2589.8,3.0]
[1724086842102,3.86071,2590.2,2589.8,3.916275]
[1724086842309,3.86071,2590.2,2589.7,6.86144]
[1724086842942,3.86071,2590.2,2589.7,10.72288]
[1724086843102,3.86071,2590.2,2589.7,10.72281]
[1724086843304,3.86071,2590.2,2589.7,6.86137]
[1724086843520,3.86071,2590.2,2589.7,8.16381]
[1724086843801,3.86071,2590.2,2589.7,12.02519]
[1724086844046,3.86071,2590.2,2589.8,3.86128]
[1724086844201,3.86071,2590.2,2589.9,3.0]
[1724086844403,3.86056,2590.3,2589.9,3.0]
[1724086844604,3.86051,2590.4,2589.9,3.50783817]
[1724086844931,7.72103,2590.4,2589.9,7.36894817]
[1724086845434,7.72103,2590.4,2589.9,7.36891817]
[1724086845435,3.86051,2590.4,2589.9,7.36891817]
[1724086845603,3.86051,2590.4,2590.0,0.73689182]
[1724086845803,9.38113552,2590.5,2590.0,0.73689182]
[1724086846058,9.38113552,2590.5,2590.0,4.59781182]
[1724086846284,11.22032,2590.5,2590.0,4.59781182]
[1724086847593,15.08068,2590.5,2590.0,3.86092]
[1724086848344,3.86043,2590.4,2589.9,6.86108]
[1724086848546,13.24145552,2590.5,2589.9,6.86101]
[1724086848771,11.22032,2590.5,2590.0,3.86092]
[1724086849689,15.08067,2590.5,2590.0,3.86092]
[1724086849887,7.72067,2590.5,2590.0,3.86092]
[1724086850187,3.86032,2590.5,2590.0,3.86092]
[1724086850753,3.8607,2590.2,2589.9,3.0]
[1724086850957,3.8607,2590.2,2589.8,3.86128]
[1724086851201,3.86058,2590.3,2589.9,3.0]
[1724086851498,3.86058,2590.3,2589.9,6.86115]
[1724086851656,2.02113552,2590.6,2590.0,3.86091]
[1724086851855,5.88130552,2590.6,2590.1,6.995671]
[1724086852377,5.88130552,2590.6,2590.2,3.86066]
[1724086852378,3.86017,2590.6,2590.2,3.86066]
[1724086852890,2.02113552,2590.7,2590.3,3.86041]
[1724086853104,11.2199,2590.8,2590.1,3.134891]
[1724086853105,9.38113552,2590.8,2590.5,3.86018]
[1724086853284,7.36,2590.8,2590.5,3.86018]
[1724086853482,7.36,2590.8,2590.5,4.632229]
[1724086854148,3.86003,2590.7,2590.2,3.8607]
[1724086854376,3.86012,2590.6,2590.2,3.8607]
[1724086855145,3.86012,2590.6,2590.1,6.995621]
[1724086855487,3.86012,2590.6,2590.2,3.0]
[1724086855799,15.67919627,2590.8,2590.2,8.2462701]
[1724086856645,3.86027,2590.5,2590.2,4.3856401]
[1724086856890,3.86017,2590.6,2589.9,2.4604]
[1724086856891,3.86041,2590.4,2589.9,2.4604]
[1724086857191,3.86023,2590.6,2589.7,4.09148]
[1724086857192,3.86079,2590.2,2589.7,4.09148]
[1724086857358,2.4515,2590.3,2589.6,2.4604]
[1724086857359,3.86085,2590.1,2589.6,2.4604]
[1724086857544,3.86085,2590.1,2589.6,6.32187]
[1724086857748,7.72184,2590.1,2589.6,6.32187]
[1724086857989,3.86085,2590.1,2589.6,10.1834]
[1724086858283,3.86071,2590.2,2589.7,4.87978]
[1724086858486,3.86071,2590.2,2589.8,3.86129]
[1724086858699,3.86071,2590.2,2589.7,4.87976]
[1724086858991,3.86071,2590.2,2589.8,3.86129]
[1724086859955,6.31218,2590.3,2589.9,3.86113]
[1724086860161,3.86042,2590.4,2589.9,3.86113]
[1724086860355,3.86042,2590.4,2590.0,2.3788]
[1724086860848,3.8607,2590.2,2590.0,2.3788]
[1724086861990,13.241342,2590.5,2590.0,3.114818]
[1724086862201,13.241342,2590.5,2590.1,3.86083]
[1724086862348,9.38133894,2590.5,2590.1,3.86078]
[1724086862695,7.36,2590.5,2590.2,3.86068]
[1724086862846,5.88137894,2590.7,2590.2,3.86068]
[1724086863248,2.02133894,2590.7,2590.3,2.4523]
[1724086863494,2.02133894,2590.8,2590.5,3.86025]
[1724086863681,2.02133894,2591.0,2590.6,3.8601]
[1724086863878,5.88085894,2591.0,2590.7,0.38601]
[1724086864084,5.88085894,2591.0,2590.6,3.8601]
[1724086864268,2.02133894,2591.0,2590.6,3.8601]